[Event "*** SCC Grand Prix: Titled Tuesday Blitz"]
[Site "Chess.com"]
[Date "2020.09.29"]
[Round "1"]
[White "winniethepooh04"]
[Black "Vlad_Lukiianchuk"]
[Result "0-1"]
[WhiteElo "2198"]
[BlackElo "2527"]
[TimeControl "180+1"]
[EndTime "10:02:30 PDT"]
[Termination "Vlad_Lukiianchuk won by resignation"]

1. d4 {[%clk 0:03:00.9]} 1... Nf6 {[%clk 0:02:59.3]} 2. Nf3 {[%clk 0:03:01.3]}
2... e6 {[%clk 0:02:59.3]} 3. Bf4 {[%clk 0:03:01.8]} 3... d5 {[%clk 0:02:58.3]}
4. e3 {[%clk 0:03:02.2]} 4... c5 {[%clk 0:02:58.2]} 5. c3 {[%clk 0:03:01.7]}
5... Bd6 {[%clk 0:02:56.5]} 6. Bg3 {[%clk 0:03:01.1]} 6... Qc7 {[%clk
0:02:56.4]} 7. Nbd2 {[%clk 0:03:00.8]} 7... Nbd7 {[%clk 0:02:55.8]} 8. Bd3
{[%clk 0:03:00.8]} 8... O-O {[%clk 0:02:55.6]} 9. O-O {[%clk 0:03:00.3]} 9... e5
{[%clk 0:02:55.7]} 10. dxe5 {[%clk 0:02:58.9]} 10... Nxe5 {[%clk 0:02:55.8]} 11.
Nxe5 {[%clk 0:02:58.8]} 11... Bxe5 {[%clk 0:02:55.2]} 12. e4 {[%clk 0:02:56.1]}
12... Bxg3 {[%clk 0:02:24.6]} 13. hxg3 {[%clk 0:02:55.4]} 13... Rd8 {[%clk
0:02:21]} 14. exd5 {[%clk 0:02:50.2]} 14... Rxd5 {[%clk 0:02:19.7]} 15. Qc2
{[%clk 0:02:40]} 15... Qd8 {[%clk 0:02:16.9]} 16. Ne4 {[%clk 0:02:13.9]} 16...
Rxd3 {[%clk 0:02:14]} 17. Nxf6+ {[%clk 0:02:12.8]} 17... gxf6 {[%clk 0:02:13.6]}
18. Rad1 {[%clk 0:02:12.3]} 18... Bf5 {[%clk 0:02:12.2]} 0-1

[Event "*** SCC Grand Prix: Titled Tuesday Blitz"]
[Site "Chess.com"]
[Date "2020.09.29"]
[Round "1"]
[White "deribas12345"]
[Black "Lysiak_Poltorak"]
[Result "1-0"]
[WhiteElo "2649"]
[BlackElo "2325"]
[TimeControl "180+1"]
[EndTime "10:02:47 PDT"]
[Termination "deribas12345 won by resignation"]

1. d4 {[%clk 0:03:00.9]} 1... Nf6 {[%clk 0:02:59.7]} 2. c4 {[%clk 0:03:00.2]}
2... g6 {[%clk 0:02:59.3]} 3. Nc3 {[%clk 0:03:00.1]} 3... d5 {[%clk 0:02:59.5]}
4. Bg5 {[%clk 0:02:59.2]} 4... Ne4 {[%clk 0:02:58.9]} 5. Bh4 {[%clk 0:02:59.1]}
5... Bg7 {[%clk 0:02:37.7]} 6. Nf3 {[%clk 0:02:57.8]} 6... c5 {[%clk 0:02:33.2]}
7. e3 {[%clk 0:02:57.2]} 7... O-O {[%clk 0:02:28.6]} 8. Nxd5 {[%clk 0:02:54.5]}
8... Qa5+ {[%clk 0:02:25.9]} 9. b4 {[%clk 0:02:50.7]} 9... cxb4 {[%clk
0:02:24.4]} 10. Bxe7 {[%clk 0:02:49]} 10... b3+ {[%clk 0:02:21.5]} 11. Bb4
{[%clk 0:02:47.6]} 11... Qd8 {[%clk 0:02:03.3]} 12. Bxf8 {[%clk 0:02:20.5]}
12... b2 {[%clk 0:02:02.5]} 13. Rb1 {[%clk 0:02:09.1]} 13... Bxf8 {[%clk
0:02:01.4]} 14. Bd3 {[%clk 0:02:04.6]} 14... Qa5+ {[%clk 0:02:00.3]} 15. Kf1
{[%clk 0:02:04.5]} 15... Bf5 {[%clk 0:01:58.9]} 16. Bxe4 {[%clk 0:02:04.2]}
16... Bxe4 {[%clk 0:01:58.5]} 17. Nf6+ {[%clk 0:02:04.3]} 1-0

[Event "*** SCC Grand Prix: Titled Tuesday Blitz"]
[Site "Chess.com"]
[Date "2020.09.29"]
[Round "1"]
[White "chessmadara"]
[Black "SARGISMV"]
[Result "0-1"]
[WhiteElo "2086"]
[BlackElo "2496"]
[TimeControl "180+1"]
[EndTime "10:02:47 PDT"]
[Termination "SARGISMV won by resignation"]

1. e4 {[%clk 0:03:00.3]} 1... e6 {[%clk 0:03:00.1]} 2. d4 {[%clk 0:02:59.7]}
2... d5 {[%clk 0:03:00.3]} 3. Nc3 {[%clk 0:02:59.4]} 3... Bb4 {[%clk 0:02:59.2]}
4. e5 {[%clk 0:02:54.7]} 4... c5 {[%clk 0:02:58.6]} 5. Bd2 {[%clk 0:02:52.9]}
5... Ne7 {[%clk 0:02:57.6]} 6. a3 {[%clk 0:02:50.7]} 6... Bxc3 {[%clk
0:02:57.7]} 7. bxc3 {[%clk 0:02:50.7]} 7... Nbc6 {[%clk 0:02:56.6]} 8. Qg4
{[%clk 0:02:20.8]} 8... O-O {[%clk 0:02:27]} 9. Bd3 {[%clk 0:02:16.8]} 9... c4
{[%clk 0:02:23.2]} 10. Bh6 {[%clk 0:01:57.6]} 10... Ng6 {[%clk 0:02:17]} 11.
Bxg6 {[%clk 0:01:43.8]} 11... fxg6 {[%clk 0:02:17.9]} 12. Ne2 {[%clk 0:01:40.4]}
12... gxh6 {[%clk 0:02:15.1]} 0-1

[Event "*** SCC Grand Prix: Titled Tuesday Blitz"]
[Site "Chess.com"]
[Date "2020.09.29"]
[Round "1"]
[White "Savagelittlemole"]
[Black "julinha97"]
[Result "1-0"]
[WhiteElo "2612"]
[BlackElo "2299"]
[TimeControl "180+1"]
[EndTime "10:03:50 PDT"]
[Termination "Savagelittlemole won by resignation"]

1. e4 {[%clk 0:03:00.9]} 1... c5 {[%clk 0:02:58.9]} 2. Ne2 {[%clk 0:02:59.3]}
2... Nc6 {[%clk 0:02:57.3]} 3. g3 {[%clk 0:02:59.1]} 3... g6 {[%clk 0:02:56.2]}
4. Bg2 {[%clk 0:02:59.7]} 4... Bg7 {[%clk 0:02:56.5]} 5. O-O {[%clk 0:03:00.4]}
5... d6 {[%clk 0:02:56.7]} 6. c3 {[%clk 0:03:01]} 6... e5 {[%clk 0:02:55.8]} 7.
d3 {[%clk 0:02:58.2]} 7... Nge7 {[%clk 0:02:55.1]} 8. f4 {[%clk 0:02:58.3]} 8...
O-O {[%clk 0:02:52.9]} 9. Nd2 {[%clk 0:02:58.6]} 9... f5 {[%clk 0:02:51.9]} 10.
Kh1 {[%clk 0:02:56.4]} 10... Be6 {[%clk 0:02:50]} 11. Nf3 {[%clk 0:02:54.4]}
11... Kh8 {[%clk 0:02:41.9]} 12. Ng5 {[%clk 0:02:52.9]} 12... Bg8 {[%clk
0:02:40]} 13. exf5 {[%clk 0:02:40.4]} 13... Nxf5 {[%clk 0:02:33.5]} 14. fxe5
{[%clk 0:02:25.5]} 14... Nxe5 {[%clk 0:02:22]} 15. Nf4 {[%clk 0:02:25.5]} 15...
Qd7 {[%clk 0:02:14.9]} 16. Qc2 {[%clk 0:01:58.3]} 16... Ng4 {[%clk 0:02:11.3]}
17. Qe2 {[%clk 0:01:47.2]} 17... Nf6 {[%clk 0:01:39.6]} 18. Bd2 {[%clk
0:01:42.8]} 18... Rae8 {[%clk 0:01:38.9]} 19. Qf3 {[%clk 0:01:42.8]} 19... Bd5
{[%clk 0:01:33.7]} 20. Nxd5 {[%clk 0:01:41.2]} 1-0

[Event "*** SCC Grand Prix: Titled Tuesday Blitz"]
[Site "Chess.com"]
[Date "2020.09.29"]
[Round "1"]
[White "ikhasu"]
[Black "tigra"]
[Result "0-1"]
[WhiteElo "2415"]
[BlackElo "2835"]
[TimeControl "180+1"]
[EndTime "10:03:58 PDT"]
[Termination "tigra won by resignation"]

1. d4 {[%clk 0:03:00.9]} 1... Nf6 {[%clk 0:02:34.1]} 2. Bf4 {[%clk 0:03:00]}
2... d6 {[%clk 0:02:33.7]} 3. Nd2 {[%clk 0:02:55.3]} 3... g6 {[%clk 0:02:29.8]}
4. e4 {[%clk 0:02:54.7]} 4... Bg7 {[%clk 0:02:29.7]} 5. Bd3 {[%clk 0:02:53.6]}
5... Nc6 {[%clk 0:02:29.1]} 6. c3 {[%clk 0:02:53.1]} 6... e5 {[%clk 0:02:27.6]}
7. Be3 {[%clk 0:02:36.7]} 7... d5 {[%clk 0:02:26.9]} 8. dxe5 {[%clk 0:02:22.6]}
8... Nxe5 {[%clk 0:02:26.6]} 9. Bc2 {[%clk 0:02:21.2]} 9... O-O {[%clk
0:02:23.6]} 10. h3 {[%clk 0:02:20.1]} 10... b6 {[%clk 0:02:20.1]} 11. Ne2 {[%clk
0:02:15.8]} 11... Ba6 {[%clk 0:02:19]} 12. Bd4 {[%clk 0:02:02.2]} 12... Nd3+
{[%clk 0:02:16.3]} 13. Bxd3 {[%clk 0:02:01.6]} 13... Bxd3 {[%clk 0:02:17.2]} 14.
exd5 {[%clk 0:01:58.6]} 14... Re8 {[%clk 0:02:13.8]} 15. Be3 {[%clk 0:01:52.8]}
15... Nxd5 {[%clk 0:02:13.9]} 16. Nf1 {[%clk 0:01:28.5]} 16... Bxe2 {[%clk
0:02:10.8]} 17. Qxe2 {[%clk 0:01:26.9]} 17... Nxc3 {[%clk 0:02:10.3]} 18. Qc2
{[%clk 0:01:16.1]} 18... Qd4 {[%clk 0:02:08.3]} 19. Rc1 {[%clk 0:01:04.7]} 19...
Nxa2 {[%clk 0:02:07.3]} 20. Rd1 {[%clk 0:01:03.4]} 20... Nb4 {[%clk 0:02:04.8]}
0-1

[Event "*** SCC Grand Prix: Titled Tuesday Blitz"]
[Site "Chess.com"]
[Date "2020.09.29"]
[Round "1"]
[White "Joshukid"]
[Black "kidagent"]
[Result "1-0"]
[WhiteElo "2578"]
[BlackElo "2277"]
[TimeControl "180+1"]
[EndTime "10:04:13 PDT"]
[Termination "Joshukid won by resignation"]

1. Nf3 {[%clk 0:02:59.8]} 1... Nf6 {[%clk 0:02:59]} 2. c4 {[%clk 0:02:59.4]}
2... c6 {[%clk 0:02:56.6]} 3. g3 {[%clk 0:02:57.7]} 3... d5 {[%clk 0:02:56.1]}
4. Bg2 {[%clk 0:02:58]} 4... Bf5 {[%clk 0:02:55.2]} 5. O-O {[%clk 0:02:56.1]}
5... e6 {[%clk 0:02:55.3]} 6. d3 {[%clk 0:02:54.7]} 6... Be7 {[%clk 0:02:54.2]}
7. cxd5 {[%clk 0:02:45]} 7... exd5 {[%clk 0:02:52.2]} 8. Nc3 {[%clk 0:02:44.6]}
8... O-O {[%clk 0:02:50.6]} 9. Qb3 {[%clk 0:02:43.4]} 9... Qb6 {[%clk
0:02:48.6]} 10. Qc2 {[%clk 0:02:43]} 10... Nbd7 {[%clk 0:02:41.1]} 11. e4 {[%clk
0:02:37.5]} 11... dxe4 {[%clk 0:02:37.4]} 12. dxe4 {[%clk 0:02:36.9]} 12... Bg6
{[%clk 0:02:37.5]} 13. Be3 {[%clk 0:02:35.6]} 13... Qb4 {[%clk 0:02:28.3]} 14.
Nh4 {[%clk 0:02:28.3]} 14... Ng4 {[%clk 0:02:19.7]} 15. Nxg6 {[%clk 0:02:24.5]}
15... hxg6 {[%clk 0:02:17.7]} 16. Bd2 {[%clk 0:02:08.8]} 16... Qb6 {[%clk
0:02:14]} 17. h3 {[%clk 0:02:06.9]} 17... Nge5 {[%clk 0:02:12.9]} 18. Be3 {[%clk
0:02:07.2]} 18... Qa6 {[%clk 0:02:07]} 19. b3 {[%clk 0:02:05.8]} 19... Bf6
{[%clk 0:02:05]} 20. f4 {[%clk 0:01:52]} 20... Nd3 {[%clk 0:02:02.7]} 21. e5
{[%clk 0:01:37.4]} 21... Be7 {[%clk 0:02:01.7]} 22. a3 {[%clk 0:01:29.4]} 22...
Bc5 {[%clk 0:01:56.5]} 23. Bxc5 {[%clk 0:01:14]} 23... N3xc5 {[%clk 0:01:54.1]}
24. Kh2 {[%clk 0:01:11]} 24... Ne6 {[%clk 0:01:52]} 25. Ne4 {[%clk 0:01:05.6]}
25... Ndc5 {[%clk 0:01:48.4]} 26. Nxc5 {[%clk 0:01:05]} 26... Nxc5 {[%clk
0:01:47.8]} 27. Qxc5 {[%clk 0:01:05.7]} 1-0

[Event "*** SCC Grand Prix: Titled Tuesday Blitz"]
[Site "Chess.com"]
[Date "2020.09.29"]
[Round "1"]
[White "goldenpuppy"]
[Black "RobertoJBM"]
[Result "1-0"]
[WhiteElo "2390"]
[BlackElo "2709"]
[TimeControl "180+1"]
[EndTime "10:04:15 PDT"]
[Termination "goldenpuppy won by resignation"]

1. e4 {[%clk 0:03:00.9]} 1... c6 {[%clk 0:02:59.4]} 2. d4 {[%clk 0:02:56.3]}
2... d5 {[%clk 0:03:00.3]} 3. Nc3 {[%clk 0:02:55.1]} 3... dxe4 {[%clk
0:03:00.5]} 4. Nxe4 {[%clk 0:02:50.7]} 4... Nd7 {[%clk 0:03:00.4]} 5. Nf3 {[%clk
0:02:50.3]} 5... Ngf6 {[%clk 0:03:00.1]} 6. Bd3 {[%clk 0:02:50.8]} 6... Nxe4
{[%clk 0:02:59.7]} 7. Bxe4 {[%clk 0:02:51.7]} 7... Nf6 {[%clk 0:03:00.3]} 8. Bd3
{[%clk 0:02:47.5]} 8... Bg4 {[%clk 0:03:00.3]} 9. c3 {[%clk 0:02:46.3]} 9... Qd5
{[%clk 0:02:59.3]} 10. Be2 {[%clk 0:02:45.9]} 10... e6 {[%clk 0:02:58.9]} 11.
Be3 {[%clk 0:02:46]} 11... Bd6 {[%clk 0:02:58]} 12. h3 {[%clk 0:02:46.2]} 12...
Bh5 {[%clk 0:02:57.4]} 13. Qd2 {[%clk 0:02:45.4]} 13... O-O {[%clk 0:02:52.6]}
14. c4 {[%clk 0:02:40.7]} 14... Qf5 {[%clk 0:02:46]} 15. g4 {[%clk 0:02:38.9]}
15... Qe4 {[%clk 0:02:14.3]} 16. gxh5 {[%clk 0:02:28.9]} 16... Nxh5 {[%clk
0:02:15.2]} 17. Qd3 {[%clk 0:02:28.3]} 17... Qxd3 {[%clk 0:02:12.6]} 18. Bxd3
{[%clk 0:02:29.2]} 18... g6 {[%clk 0:02:12.9]} 19. O-O-O {[%clk 0:02:28.2]}
19... Rfd8 {[%clk 0:02:12.3]} 20. Kb1 {[%clk 0:02:27.4]} 20... Rac8 {[%clk
0:02:10.6]} 21. Ne5 {[%clk 0:02:26.9]} 21... Ng7 {[%clk 0:02:09.2]} 22. Ng4
{[%clk 0:02:25.9]} 22... Be7 {[%clk 0:02:08.6]} 23. h4 {[%clk 0:02:24.4]} 23...
h5 {[%clk 0:02:07.9]} 24. Ne5 {[%clk 0:02:23.4]} 24... Bf6 {[%clk 0:02:03.4]}
25. Bg5 {[%clk 0:02:13.3]} 25... Bxg5 {[%clk 0:01:57.9]} 26. hxg5 {[%clk
0:02:14.2]} 26... Rxd4 {[%clk 0:01:57.8]} 27. Kc2 {[%clk 0:02:08.2]} 27... Rf4
{[%clk 0:01:55.2]} 28. f3 {[%clk 0:02:03.8]} 28... Nf5 {[%clk 0:01:51.6]} 29.
Bxf5 {[%clk 0:02:02.6]} 29... Rxf5 {[%clk 0:01:52.5]} 30. Rhe1 {[%clk
0:02:00.8]} 30... Rxg5 {[%clk 0:01:50.6]} 31. Rd7 {[%clk 0:02:00.5]} 31... Rf5
{[%clk 0:01:47]} 32. Rxb7 {[%clk 0:01:57.5]} 32... Rd8 {[%clk 0:01:47.5]} 33.
Nxc6 {[%clk 0:01:52.3]} 33... Re8 {[%clk 0:01:42.4]} 34. Ne7+ {[%clk 0:01:52]}
34... Rxe7 {[%clk 0:01:42.8]} 35. Rxe7 {[%clk 0:01:51.9]} 35... Rxf3 {[%clk
0:01:43.7]} 36. c5 {[%clk 0:01:50.5]} 36... Rf5 {[%clk 0:01:43]} 37. b4 {[%clk
0:01:50]} 37... a5 {[%clk 0:01:42.9]} 38. a3 {[%clk 0:01:48.1]} 38... axb4
{[%clk 0:01:43.3]} 39. axb4 {[%clk 0:01:49]} 39... h4 {[%clk 0:01:43.5]} 40. c6
{[%clk 0:01:49]} 1-0

[Event "*** SCC Grand Prix: Titled Tuesday Blitz"]
[Site "Chess.com"]
[Date "2020.09.29"]
[Round "1"]
[White "M1711"]
[Black "Quiet_Desperation"]
[Result "0-1"]
[WhiteElo "2456"]
[BlackElo "2014"]
[TimeControl "180+1"]
[EndTime "10:04:17 PDT"]
[Termination "Quiet_Desperation won by checkmate"]

1. b4 {[%clk 0:02:59.7]} 1... d6 {[%clk 0:02:49.2]} 2. Bb2 {[%clk 0:02:58]} 2...
e5 {[%clk 0:02:49.3]} 3. e3 {[%clk 0:02:57.7]} 3... Nf6 {[%clk 0:02:48.7]} 4.
Nf3 {[%clk 0:02:56.3]} 4... e4 {[%clk 0:02:48.3]} 5. Nd4 {[%clk 0:02:56.2]} 5...
d5 {[%clk 0:02:48.7]} 6. a3 {[%clk 0:02:52]} 6... c6 {[%clk 0:02:47.1]} 7. c4
{[%clk 0:02:50.3]} 7... Bd6 {[%clk 0:02:46.8]} 8. Be2 {[%clk 0:02:48.6]} 8... a6
{[%clk 0:02:42.7]} 9. O-O {[%clk 0:02:46.7]} 9... h5 {[%clk 0:02:42.9]} 10. f4
{[%clk 0:02:11]} 10... Ng4 {[%clk 0:02:41.8]} 11. Nc3 {[%clk 0:02:04.4]} 11...
Qh4 {[%clk 0:02:39.8]} 12. h3 {[%clk 0:01:50.6]} 12... Qg3 {[%clk 0:02:37.4]}
13. hxg4 {[%clk 0:01:51]} 13... hxg4 {[%clk 0:02:37.4]} 14. Bxg4 {[%clk
0:01:30.7]} 14... Bxg4 {[%clk 0:02:34.9]} 15. Qe1 {[%clk 0:01:31]} 15... Qh2+
{[%clk 0:02:30.1]} 16. Kf2 {[%clk 0:01:31.3]} 16... Be7 {[%clk 0:02:19.1]} 17.
Nf5 {[%clk 0:01:09.6]} 17... Bxf5 {[%clk 0:02:14.3]} 18. Qb1 {[%clk 0:00:48]}
18... Bh4+ {[%clk 0:01:57.2]} 19. Ke2 {[%clk 0:00:47.4]} 19... Bg4+ {[%clk
0:01:52.7]} 20. Rf3 {[%clk 0:00:47.6]} 20... Bxf3+ {[%clk 0:01:49.7]} 21. Kf1
{[%clk 0:00:46.7]} 21... Qxg2# {[%clk 0:01:49]} 0-1

[Event "*** SCC Grand Prix: Titled Tuesday Blitz"]
[Site "Chess.com"]
[Date "2020.09.29"]
[Round "1"]
[White "AvitalBor"]
[Black "AsaHoffmann"]
[Result "1-0"]
[WhiteElo "2786"]
[BlackElo "2399"]
[TimeControl "180+1"]
[EndTime "10:04:35 PDT"]
[Termination "AvitalBor won by checkmate"]

1. e4 {[%clk 0:03:00.9]} 1... d6 {[%clk 0:02:58.9]} 2. d4 {[%clk 0:03:00.5]}
2... c6 {[%clk 0:02:58.2]} 3. c3 {[%clk 0:02:58.4]} 3... Nf6 {[%clk 0:02:55.7]}
4. Bd3 {[%clk 0:02:58.1]} 4... e5 {[%clk 0:02:55.3]} 5. Nf3 {[%clk 0:02:58]}
5... Bg4 {[%clk 0:02:54.3]} 6. h3 {[%clk 0:02:57.8]} 6... Bxf3 {[%clk
0:02:52.6]} 7. Qxf3 {[%clk 0:02:58.7]} 7... Nbd7 {[%clk 0:02:52]} 8. O-O {[%clk
0:02:58.2]} 8... Be7 {[%clk 0:02:51.8]} 9. Nd2 {[%clk 0:02:57.6]} 9... O-O
{[%clk 0:02:51.2]} 10. Re1 {[%clk 0:02:57.8]} 10... b5 {[%clk 0:02:48.9]} 11.
Nf1 {[%clk 0:02:57.4]} 11... a6 {[%clk 0:02:47.5]} 12. Ng3 {[%clk 0:02:56.9]}
12... Re8 {[%clk 0:02:46.9]} 13. Be3 {[%clk 0:02:56]} 13... Bf8 {[%clk
0:02:46.2]} 14. Rad1 {[%clk 0:02:55.7]} 14... Qc7 {[%clk 0:02:45.5]} 15. Nf5
{[%clk 0:02:54]} 15... g6 {[%clk 0:02:42.7]} 16. Nh6+ {[%clk 0:02:52]} 16... Kg7
{[%clk 0:02:35.2]} 17. Bb1 {[%clk 0:02:41]} 17... Re7 {[%clk 0:02:29.8]} 18. a3
{[%clk 0:02:40.1]} 18... Ng8 {[%clk 0:02:28.7]} 19. Nxg8 {[%clk 0:02:29.4]}
19... Kxg8 {[%clk 0:02:28]} 20. Ba2 {[%clk 0:02:29.5]} 20... Kg7 {[%clk
0:02:16.2]} 21. Bg5 {[%clk 0:02:15.4]} 21... f6 {[%clk 0:02:15.8]} 22. Bc1
{[%clk 0:02:15.4]} 22... Nb6 {[%clk 0:02:13.5]} 23. Qg3 {[%clk 0:02:08.7]} 23...
Rd8 {[%clk 0:02:10.4]} 24. Qh4 {[%clk 0:02:01.8]} 24... Nd7 {[%clk 0:02:02.4]}
25. dxe5 {[%clk 0:01:57]} 25... dxe5 {[%clk 0:01:53.4]} 26. Rd3 {[%clk
0:01:50.6]} 26... h5 {[%clk 0:01:39.6]} 27. g4 {[%clk 0:01:28.6]} 27... Nc5
{[%clk 0:01:35.7]} 28. Rxd8 {[%clk 0:01:26]} 28... Qxd8 {[%clk 0:01:35.3]} 29.
gxh5 {[%clk 0:01:23.5]} 29... g5 {[%clk 0:01:26.5]} 30. Bxg5 {[%clk 0:01:19.4]}
30... fxg5 {[%clk 0:01:26.1]} 31. Qxg5+ {[%clk 0:01:19.1]} 31... Kh8 {[%clk
0:01:25.9]} 32. Qg8# {[%clk 0:01:18.3]} 1-0

[Event "*** SCC Grand Prix: Titled Tuesday Blitz"]
[Site "Chess.com"]
[Date "2020.09.29"]
[Round "1"]
[White "Kumi29"]
[Black "seorobert1971"]
[Result "0-1"]
[WhiteElo "2362"]
[BlackElo "2706"]
[TimeControl "180+1"]
[EndTime "10:04:41 PDT"]
[Termination "seorobert1971 won by resignation"]

1. d4 {[%clk 0:03:00.6]} 1... Nf6 {[%clk 0:02:59.3]} 2. Bg5 {[%clk 0:03:00.1]}
2... e6 {[%clk 0:03:00.2]} 3. Nd2 {[%clk 0:02:59.6]} 3... d5 {[%clk 0:02:59.9]}
4. e3 {[%clk 0:02:59.8]} 4... Be7 {[%clk 0:02:59.8]} 5. Bd3 {[%clk 0:02:59.7]}
5... b6 {[%clk 0:02:59.8]} 6. c3 {[%clk 0:02:57.9]} 6... Bb7 {[%clk 0:02:59.8]}
7. Bxf6 {[%clk 0:02:54.5]} 7... Bxf6 {[%clk 0:02:59.2]} 8. f4 {[%clk 0:02:54.8]}
8... c5 {[%clk 0:02:57.7]} 9. Ngf3 {[%clk 0:02:54.6]} 9... Nd7 {[%clk
0:02:57.8]} 10. Ne5 {[%clk 0:02:44.3]} 10... O-O {[%clk 0:02:53.5]} 11. Qf3
{[%clk 0:02:18.4]} 11... cxd4 {[%clk 0:02:46.6]} 12. exd4 {[%clk 0:02:17.6]}
12... Be7 {[%clk 0:02:43.3]} 13. O-O-O {[%clk 0:01:59]} 13... f5 {[%clk
0:02:34.9]} 14. g4 {[%clk 0:01:57.2]} 14... Nxe5 {[%clk 0:02:33.7]} 15. fxe5
{[%clk 0:01:54.9]} 15... Qd7 {[%clk 0:02:23.7]} 16. gxf5 {[%clk 0:01:50.2]}
16... exf5 {[%clk 0:02:23.5]} 17. h4 {[%clk 0:01:46]} 17... Qe6 {[%clk
0:02:16.4]} 18. Nf1 {[%clk 0:01:37.7]} 18... Bc6 {[%clk 0:02:12.7]} 19. Ne3
{[%clk 0:01:36]} 19... f4 {[%clk 0:02:00.7]} 20. Ng2 {[%clk 0:01:23.4]} 20...
Qh6 {[%clk 0:01:50.8]} 21. Rdf1 {[%clk 0:01:21.6]} 21... Rf7 {[%clk 0:01:49.2]}
22. Qg4 {[%clk 0:01:13.6]} 22... Raf8 {[%clk 0:01:46.1]} 23. Kb1 {[%clk
0:01:11.5]} 23... f3 {[%clk 0:01:44.4]} 24. Ne1 {[%clk 0:01:10.5]} 24... Rf4
{[%clk 0:01:39.9]} 25. Qg3 {[%clk 0:01:02.7]} 25... f2 {[%clk 0:01:39.7]} 26.
Ng2 {[%clk 0:01:01.8]} 26... Rf3 {[%clk 0:01:39.3]} 27. Bxh7+ {[%clk 0:00:53.3]}
27... Qxh7+ {[%clk 0:01:38]} 0-1

[Event "*** SCC Grand Prix: Titled Tuesday Blitz"]
[Site "Chess.com"]
[Date "2020.09.29"]
[Round "1"]
[White "ErikRonka"]
[Black "annacramling"]
[Result "1-0"]
[WhiteElo "2480"]
[BlackElo "2016"]
[TimeControl "180+1"]
[EndTime "10:04:51 PDT"]
[Termination "ErikRonka won by resignation"]

1. e4 {[%clk 0:02:59]} 1... c5 {[%clk 0:02:58.6]} 2. Nf3 {[%clk 0:02:58.1]} 2...
e6 {[%clk 0:02:53.9]} 3. d4 {[%clk 0:02:56]} 3... cxd4 {[%clk 0:02:54.8]} 4.
Nxd4 {[%clk 0:02:56.6]} 4... Nf6 {[%clk 0:02:55.1]} 5. Nc3 {[%clk 0:02:57]} 5...
Nc6 {[%clk 0:02:55.4]} 6. Ndb5 {[%clk 0:02:55.1]} 6... d6 {[%clk 0:02:55.3]} 7.
Bf4 {[%clk 0:02:52]} 7... e5 {[%clk 0:02:55.7]} 8. Bg5 {[%clk 0:02:52.5]} 8...
a6 {[%clk 0:02:55]} 9. Na3 {[%clk 0:02:52.5]} 9... b5 {[%clk 0:02:54.8]} 10.
Bxf6 {[%clk 0:02:52.7]} 10... gxf6 {[%clk 0:02:53.4]} 11. Nd5 {[%clk 0:02:53.6]}
11... f5 {[%clk 0:02:51]} 12. Bd3 {[%clk 0:02:49.8]} 12... Be6 {[%clk
0:02:42.8]} 13. c3 {[%clk 0:02:49.4]} 13... Bg7 {[%clk 0:02:35.3]} 14. Nxb5
{[%clk 0:02:49.3]} 14... axb5 {[%clk 0:02:32.5]} 15. Bxb5 {[%clk 0:02:50.2]}
15... Rc8 {[%clk 0:02:25.1]} 16. Qa4 {[%clk 0:02:48.4]} 16... Bd7 {[%clk
0:02:11.8]} 17. exf5 {[%clk 0:02:48.4]} 17... O-O {[%clk 0:01:46.3]} 18. O-O
{[%clk 0:02:46.3]} 18... Ra8 {[%clk 0:01:30.5]} 19. Qe4 {[%clk 0:02:37.5]} 19...
Kh8 {[%clk 0:00:55]} 20. f6 {[%clk 0:02:17.1]} 20... Bxf6 {[%clk 0:00:45.9]} 21.
Bd3 {[%clk 0:01:58.4]} 1-0

[Event "*** SCC Grand Prix: Titled Tuesday Blitz"]
[Site "Chess.com"]
[Date "2020.09.29"]
[Round "1"]
[White "SaqoChess_Twitch"]
[Black "Sychev_Klementy"]
[Result "0-1"]
[WhiteElo "2429"]
[BlackElo "2905"]
[TimeControl "180+1"]
[EndTime "10:04:53 PDT"]
[Termination "Sychev_Klementy won by resignation"]

1. d4 {[%clk 0:02:58.9]} 1... Nf6 {[%clk 0:02:59.7]} 2. c4 {[%clk 0:02:58.2]}
2... g6 {[%clk 0:03:00.1]} 3. Nc3 {[%clk 0:02:57.3]} 3... d5 {[%clk 0:03:00.2]}
4. Bf4 {[%clk 0:02:56.1]} 4... Bg7 {[%clk 0:02:59.9]} 5. e3 {[%clk 0:02:56.7]}
5... c5 {[%clk 0:02:59.3]} 6. Rc1 {[%clk 0:02:56.4]} 6... cxd4 {[%clk
0:02:58.6]} 7. exd4 {[%clk 0:02:56.2]} 7... O-O {[%clk 0:02:58.5]} 8. Nf3 {[%clk
0:02:53.7]} 8... Nc6 {[%clk 0:02:58.2]} 9. cxd5 {[%clk 0:02:51.3]} 9... Nxd5
{[%clk 0:02:57.4]} 10. Nxd5 {[%clk 0:02:52.2]} 10... Qxd5 {[%clk 0:02:56.8]} 11.
Bc4 {[%clk 0:02:52.9]} 11... Qe4+ {[%clk 0:02:46.7]} 12. Be3 {[%clk 0:02:53.5]}
12... Bg4 {[%clk 0:02:40.9]} 13. Be2 {[%clk 0:02:41.1]} 13... Rad8 {[%clk
0:02:09]} 14. Qc2 {[%clk 0:02:37.5]} 14... Qxc2 {[%clk 0:01:58]} 15. Rxc2 {[%clk
0:02:38.4]} 15... Bf5 {[%clk 0:01:48.9]} 16. Rd2 {[%clk 0:02:36.3]} 16... Nb4
{[%clk 0:01:40.1]} 17. a3 {[%clk 0:02:35.1]} 17... Nc2+ {[%clk 0:01:35.6]} 18.
Kf1 {[%clk 0:02:32.4]} 18... e5 {[%clk 0:01:23.5]} 19. d5 {[%clk 0:02:24.8]}
19... Nxe3+ {[%clk 0:01:00.9]} 20. fxe3 {[%clk 0:02:24]} 20... e4 {[%clk
0:01:01.4]} 21. Nh4 {[%clk 0:02:18.9]} 21... Be6 {[%clk 0:00:54.7]} 22. d6
{[%clk 0:02:17.4]} 22... g5 {[%clk 0:00:53.5]} 23. Nf3 {[%clk 0:02:08.5]} 23...
exf3 {[%clk 0:00:52.9]} 24. Bxf3 {[%clk 0:02:09.4]} 24... Be5 {[%clk 0:00:51]}
25. Bxb7 {[%clk 0:02:04.6]} 25... Rxd6 {[%clk 0:00:51.1]} 26. Rxd6 {[%clk
0:02:03.8]} 26... Bxd6 {[%clk 0:00:52]} 27. b4 {[%clk 0:02:02.8]} 27... Rb8
{[%clk 0:00:48.4]} 28. Be4 {[%clk 0:02:02.8]} 28... Rc8 {[%clk 0:00:44.3]} 29.
Ke2 {[%clk 0:02:03]} 29... Rc3 {[%clk 0:00:44]} 30. Rd1 {[%clk 0:02:03.5]} 30...
Bxh2 {[%clk 0:00:41.6]} 31. Rh1 {[%clk 0:02:03.4]} 31... Be5 {[%clk 0:00:37.8]}
32. Bxh7+ {[%clk 0:02:03.7]} 32... Kg7 {[%clk 0:00:37.5]} 33. Be4 {[%clk
0:02:04.6]} 33... Rxa3 {[%clk 0:00:37.2]} 34. Rh6 {[%clk 0:02:03.4]} 34... Kxh6
{[%clk 0:00:36.8]} 0-1